{"text_format":"1","workbook":"xlsx","n_sheets":3,"sheets":["czas_stężenie","czas_dawka","stężenie_dawka"],"not_rendered":{"charts":0,"images":21,"macros":1,"external_links":0,"defined_names":0,"comments":0,"pivot_tables":0},"unopened":[],"bounds":{"document_bytes":16777216,"sheet_cells":100000,"rows_first":2000,"rows_last":500,"rows_between":2000,"halvings":0,"cell_chars":16384,"cell_head_chars":4096},"cells_cut":0,"cells_raw":0,"read":"whole","date_system":"1900"}

{"sheet":"czas_stężenie","index":0,"n_rows":18,"n_cols":8,"rows_kept":18,"cut":false,"hidden":false,"merged":[[12,1,16,1],[12,0,16,0]]}
[]
[null,null,null,"tylko w pola wyróżnione kolorem zielonym można wpisywać dane"]
[]
[null,null,null,"współczynnik równowagi F","współczynnik przeliczeniowy [Sv/J h m-3]"]
[null,"czas ekspozycji t[h]",null,0.2,3]
[null,"stężenie radonu cRa[Bqm-3]",null,0.5,3]
[null,"po wpisaniu danych stań kursorem na szarym polu obok",null,0.4,6]
[null,null,null,0.4,3]
[null,null,null,0.4,6]
[null,null,null,0.4,1.4]
[]
["opcje","źródło odniesienia","rodzaj miejsca pracy","ekspozycja na stężenie radonu  [Bq h m-3]","ekspozycja na stężenie radonu  [kBq h m-3]","ekspozycja na PAEC [J h m-3]","ekspozycja na PAEC [mJ h m-3]","dawka efektywna [mSv] "]
[1,"aktualne rekomendacje ICRP ","czynna kopalnia",{"$f":"$C$5*$C$6","v":0},{"$f":"D13/1000","v":0},{"$f":"D13*$D5/(1.8*10^8)","v":0},{"$f":"F13*1000","v":0},{"$f":"F13*$E5*1000","v":0}]
[null,null,"kopalnia - trasa turystyczna",{"$f":"$C$5*$C$6","v":0},{"$f":"D14/1000","v":0},0,{"$f":"F14*1000","v":0},0]
[null,null,"naturalna trasa turystyczna  (np. jaskinia)",{"$f":"$C$5*$C$6","v":0},{"$f":"D15/1000","v":0},0,{"$f":"F15*1000","v":0},0]
[null,null,"wewnątrz pomieszczeń - biura, szkoły, przedszkola, kawiarnie itp.",0,0,0,0,0]
[null,null,"wewnątrz pomieszczeń praca związana z dużym wysiłkiem fizycznym",0,0,0,0,0]
[2,"polskie prawo ","ogólnie na stanowisku pracy",0,0,0,0,0]

{"sheet":"czas_dawka","index":1,"n_rows":18,"n_cols":8,"rows_kept":18,"cut":false,"hidden":false,"merged":[[12,0,16,0],[12,1,16,1]]}
[]
[null,null,null,"tylko w pola wyróżnione kolorem zielonym można wpisywać dane"]
[]
[null,null,null,"współczynnik równowagi F","współczynnik przeliczeniowy [mSv/J h m-3]","współczynnik przeliczeniowy [Sv/J h m-3]"]
[null,"czas ekspozycji t[h]",null,0.2,3,3]
[null,"dawka efektywna [mSv] ",null,0.5,3,6]
[null,"po wpisaniu danych stań kursorem na szarym polu obok",null,0.4,6,3]
[null,null,null,0.4,3,6]
[null,null,null,0.4,6,1.4]
[null,null,null,0.4,1.4]
[]
["opcje","źródło odniesienia","rodzaj miejsca pracy","ekspozycja na stężenie radonu  [Bq h m-3]","ekspozycja na stężenie radonu  [kBq h m-3]","ekspozycja na PAEC [J h m-3]","ekspozycja na PAEC [mJ h m-3]","stężenie radonu cRa[Bqm-3]"]
[1,"aktualne rekomendacje ICRP ","czynna kopalnia",{"$f":"(F13*1.8*10^8)/D5","v":0},{"$f":"D13/1000","v":0},{"$f":"$C$6/E5","v":0},{"$f":"F13*1000","v":0},{"$f":"(D13/$C$5)/1000","v":{"$error":"#DIV/0!"}}]
[null,null,"kopalnia - trasa turystyczna",{"$f":"(F14*1.8*10^8)/D6","v":0},{"$f":"D14/1000","v":0},{"$f":"$C$6/E6","v":0},{"$f":"F14*1000","v":0},{"$f":"(D14/$C$5)/1000","v":{"$error":"#DIV/0!"}}]
[null,null,"naturalna trasa turystyczna  (np. jaskinia)",{"$f":"(F15*1.8*10^8)/D6","v":0},{"$f":"D15/1000","v":0},{"$f":"$C$6/E6","v":0},{"$f":"F15*1000","v":0},{"$error":"#DIV/0!"}]
[null,null,"wewnątrz pomieszczeń - biura, szkoły, przedszkola, kawiarnie itp.",{"$f":"(F16*1.8*10^8)/D7","v":0},0,0,0,{"$error":"#DIV/0!"}]
[null,null,"wewnątrz pomieszczeń praca związana z dużym wysiłkiem fizycznym",{"$f":"(F17*1.8*10^8)/D8","v":0},0,0,0,{"$error":"#DIV/0!"}]
[2,"polskie prawo ","ogólnie na stanowisku pracy",{"$f":"(F18*1.8*10^8)/D9","v":0},0,0,0,{"$error":"#DIV/0!"}]

{"sheet":"stężenie_dawka","index":2,"n_rows":18,"n_cols":8,"rows_kept":18,"cut":false,"hidden":false,"merged":[[12,0,16,0],[12,1,16,1]]}
[]
[null,null,null,"tylko w pola wyróżnione kolorem zielonym można wpisywać dane"]
[]
[null,null,null,"współczynnik równowagi F","współczynnik przeliczeniowy [Sv/J h m-3]"]
[null,"stężenie radonu cRa[Bqm-3]",null,0.2,3]
[null,"dawka efektywna [mSv] ",null,0.5,3]
[null,"po wpisaniu danych stań kursorem na szarym polu obok",null,0.4,6]
[null,null,null,0.4,3]
[null,null,null,0.4,6]
[null,null,null,0.4,1.4]
[]
["opcje","źródło odniesienia","rodzaj miejsca pracy","ekspozycja na stężenie radonu  [Bq h m-3]","ekspozycja na stężenie radonu  [kBq h m-3]","ekspozycja na PAEC [J h m-3]","ekspozycja na PAEC [mJ h m-3]","czas ekspozycji t[h]"]
[1,"aktualne rekomendacje ICRP ","czynna kopalnia",{"$f":"(F13*1.8*10^8)/D5","v":0},{"$f":"D13/1000","v":0},{"$f":"($C$6/E5)/1000","v":0},{"$f":"F13*1000","v":0},{"$f":"D13/$C$5","v":{"$error":"#DIV/0!"}}]
[null,null,"kopalnia - trasa turystyczna",{"$f":"(F14*1.8*10^8)/D6","v":0},{"$f":"D14/1000","v":0},{"$f":"($C$6/E6)/1000","v":0},{"$f":"F14*1000","v":0},{"$f":"D14/$C$5","v":{"$error":"#DIV/0!"}}]
[null,null,"naturalna trasa turystyczna  (np. jaskinia)",{"$f":"(F15*1.8*10^8)/D6","v":0},{"$f":"D15/1000","v":0},{"$f":"($C$6/E6)/1000","v":0},{"$f":"F15*1000","v":0},{"$f":"D15/$C$5","v":{"$error":"#DIV/0!"}}]
[null,null,"wewnątrz pomieszczeń - biura, szkoły, przedszkola, kawiarnie itp.",{"$f":"(F16*1.8*10^8)/D7","v":0},0,0,0,{"$error":"#DIV/0!"}]
[null,null,"wewnątrz pomieszczeń praca związana z dużym wysiłkiem fizycznym",{"$f":"(F17*1.8*10^8)/D8","v":0},0,0,0,{"$error":"#DIV/0!"}]
[2,"polskie prawo ","ogólnie na stanowisku pracy",{"$f":"(F18*1.8*10^8)/D9","v":0},0,0,0,{"$error":"#DIV/0!"}]